fUSD/lending_fUSD_20250523
["ID","MTS","AMOUNT","RATE_DAILY","PERIOD"]
[362137753,1748026203093,-150.0,0.00019955,2]
[362137754,1748026203114,-150.0,0.00019956,2]
[362137755,1748026203143,-150.0,0.00019966,2]
[362137756,1748026203167,-150.0,0.00019969,2]
[362137757,1748026203192,-150.0,0.0001997,2]
[362137758,1748026203214,-500.0,0.00019973,2]
[362137759,1748026203237,-500.0,0.00019973,2]
[362137760,1748026203259,-500.0,0.00019973,2]
[362137761,1748026203281,-501.24673176,0.00019973,2]
[362137762,1748026203302,-162.43810345,0.00019973,2]
[362137763,1748026203325,-505.448728,0.00019973,2]
[362137764,1748026203353,-1031.94,0.00019973,2]
[362137765,1748026203378,-178.158,0.00019973,2]
[362137766,1748026203402,-150.0,0.00019975,2]
[362137767,1748026203426,-150.0,0.00019977,2]
[362137768,1748026203453,-150.0,0.0001998,2]
[362137769,1748026203477,-150.0,0.00019982,2]
[362137770,1748026203501,-150.0,0.00019985,2]
[362137771,1748026203523,-151.73,0.0001999,2]
[362137772,1748026203548,-151.73,0.0001999,2]
[362137773,1748026203571,-151.73,0.0001999,2]
[362137774,1748026203593,-175.04078365,0.0001999,2]
[362137775,1748026203618,-150.0,0.0001999,2]
[362137776,1748026203640,-163.14053721,0.00019996,2]
[362137777,1748026203663,-258.64295922,0.00019996,2]
[362137778,1748026203693,-1000.0,0.00019997,2]
[362137779,1748026203716,-1000.0,0.00019997,2]
[362137780,1748026203737,-1000.0,0.00019997,2]
[362137781,1748026203759,-1000.0,0.00019997,2]
[362137782,1748026203780,-1000.0,0.00019997,2]
[362137783,1748026203803,-1000.0,0.00019997,2]
[362137784,1748026203825,-1000.0,0.00019997,2]
[362137785,1748026203847,-1000.0,0.00019997,2]
[362137786,1748026203869,-1000.0,0.00019997,2]
[362137787,1748026203892,-1000.0,0.00019997,2]
[362137788,1748026203914,-1000.0,0.00019997,2]
[362137789,1748026203938,-1000.0,0.00019997,2]
[362137790,1748026203960,-1000.0,0.00019997,2]
[362137791,1748026203985,-1000.0,0.00019997,2]
[362137792,1748026204009,-1000.0,0.00019997,2]
[362137793,1748026204032,-1000.0,0.00019997,2]
[362137794,1748026204054,-1000.0,0.00019997,2]
[362137795,1748026204077,-1000.0,0.00019997,2]
[362137796,1748026204098,-1000.0,0.00019997,2]
[362137797,1748026204120,-1000.0,0.00019997,2]
[362137798,1748026204142,-1000.0,0.00019997,2]
[362137799,1748026204163,-1000.0,0.00019997,2]
[362137800,1748026204195,-1000.0,0.00019997,2]
[362137801,1748026204220,-1000.0,0.00019997,2]
[362137802,1748026204242,-1000.0,0.00019997,2]
[362137803,1748026204264,-1000.0,0.00019997,2]
[362137804,1748026204287,-1000.0,0.00019997,2]
[362137805,1748026204309,-1000.0,0.00019997,2]
[362137806,1748026204333,-1000.0,0.00019997,2]
[362137807,1748026204357,-1000.0,0.00019997,2]
[362137808,1748026204379,-1000.0,0.00019997,2]
[362137809,1748026204400,-1000.0,0.00019997,2]
[362137810,1748026204422,-1000.0,0.00019997,2]
[362137811,1748026204444,-1000.0,0.00019997,2]
[362137812,1748026204466,-1000.0,0.00019997,2]
[362137813,1748026204491,-1000.0,0.00019997,2]
[362137814,1748026204512,-1000.0,0.00019997,2]
[362137815,1748026204534,-1000.0,0.00019997,2]
[362137816,1748026204556,-1000.0,0.00019997,2]
[362137817,1748026204579,-1000.0,0.00019997,2]
[362137818,1748026204602,-1000.0,0.00019997,2]
[362137819,1748026204628,-1000.0,0.00019997,2]
[362137820,1748026204654,-1000.0,0.00019997,2]
[362137821,1748026204677,-1000.0,0.00019997,2]
[362137822,1748026204704,-1000.0,0.00019997,2]
[362137823,1748026204727,-1000.0,0.00019997,2]
[362137824,1748026204750,-1000.0,0.00019997,2]
[362137825,1748026204772,-1000.0,0.00019997,2]
[362137826,1748026204795,-1000.0,0.00019997,2]
[362137827,1748026204817,-1000.0,0.00019997,2]
[362137828,1748026204841,-151.0,0.00019998,2]
[362137829,1748026204865,-151.0,0.00019998,2]
[362137830,1748026204888,-1000.0,0.00019998,2]
[362137831,1748026204911,-1000.0,0.00019998,2]
[362137832,1748026204933,-1000.0,0.00019998,2]
[362137833,1748026204955,-1000.0,0.00019998,2]
[362137834,1748026204976,-1000.0,0.00019998,2]
[362137835,1748026205002,-1000.0,0.00019998,2]
[362137836,1748026205023,-1000.0,0.00019998,2]
[362137837,1748026205046,-1000.0,0.00019998,2]
[362137838,1748026205068,-1000.0,0.00019998,2]
[362137839,1748026205092,-1000.0,0.00019998,2]
[362137840,1748026205114,-1000.0,0.00019998,2]
[362137841,1748026205137,-1000.0,0.00019998,2]
[362137842,1748026205159,-1000.0,0.00019998,2]
[362137843,1748026205181,-1000.0,0.00019998,2]
[362137844,1748026205208,-1000.0,0.00019998,2]
[362137845,1748026205232,-1000.0,0.00019998,2]
[362137846,1748026205254,-1000.0,0.00019998,2]
[362137847,1748026205276,-1000.0,0.00019998,2]
[362137848,1748026205298,-1000.0,0.00019998,2]
[362137849,1748026205320,-1000.0,0.00019998,2]
[362137850,1748026205589,-1000.0,0.00019998,2]
[362137851,1748026205612,-1000.0,0.00019998,2]
[362137852,1748026205637,-1000.0,0.00019998,2]
[362137853,1748026205659,-1000.0,0.00019998,2]
[362137854,1748026205681,-1000.0,0.00019998,2]
[362137855,1748026205704,-1000.0,0.00019998,2]
[362137856,1748026205727,-1000.0,0.00019998,2]
[362137857,1748026205749,-1000.0,0.00019998,2]
[362137858,1748026205771,-1000.0,0.00019998,2]
[362137859,1748026205793,-1000.0,0.00019998,2]
[362137860,1748026205816,-1000.0,0.00019998,2]
[362137861,1748026205839,-1000.0,0.00019998,2]
[362137862,1748026205860,-1000.0,0.00019998,2]
[362137863,1748026205882,-1000.0,0.00019998,2]
[362137864,1748026205903,-1000.0,0.00019998,2]
[362137865,1748026205924,-1000.0,0.00019998,2]
[362137866,1748026205945,-1000.0,0.00019998,2]
[362137867,1748026205967,-1000.0,0.00019998,2]
[362137868,1748026205992,-1000.0,0.00019998,2]
[362137869,1748026206013,-1000.0,0.00019998,2]
[362137870,1748026206036,-1000.0,0.00019998,2]
[362137871,1748026206058,-1051.0,0.00019998,2]
[362137872,1748026206085,-459.3094,0.00019999,2]
[362137873,1748026206108,-219.17,0.00019999,2]
[362137874,1748026206130,-2004.87500045,0.00019999,2]
[362137875,1748026206152,-497.7132057,0.00019999,2]
[362137876,1748026206174,-60665.9680645,0.00019999,2]
[362137877,1748026206196,-152.384892,0.00019999,2]
[362137878,1748026206218,-151.0,0.00019999,2]
[362137879,1748026206240,-50868.0372245,0.00019999,2]
[362137880,1748026206263,-1564.039116,0.00019999,2]
[362137881,1748026206285,-1564.039116,0.00019999,2]
[362137882,1748026206307,-151.0,0.00019999,2]
[362137883,1748026206329,-1760.496764,0.00019999,2]
[362137884,1748026206350,-10823.1852956,0.00019999,2]
[362137885,1748026206373,-10127.0799018,0.00019999,2]
[362137886,1748026206398,-151.0,0.00019999,2]
[362137887,1748026206421,-151.0,0.00019999,2]
[362137888,1748026206441,-24079.43133326,0.0002,2]
[362137889,1748026206462,-556.0,0.0002,2]
[362137890,1748026206486,-153434.47845071,0.0002,2]
[362137892,1748026232050,-1676.70000001,0.00019178,2]
[362137893,1748026232062,-2323.29999999,0.00019178,2]
[362137894,1748026232161,-3369.40338985,0.00019178,2]
[362137895,1748026232171,-5000.0,0.00019178,2]
[362137896,1748026232180,-5000.0,0.00019178,2]
[362137897,1748026232190,-5000.0,0.00019178,2]
[362137898,1748026232199,-5000.0,0.00019178,2]
[362137899,1748026232209,-1200.0,0.00019799,2]
[362137900,1748026232219,-890.49863081,0.000199,2]
[362137901,1748026232229,-153.02023607,0.00019973,2]
[362137902,1748026232238,-502.28145813,0.00019973,2]
[362137903,1748026232247,-500.0,0.00019973,2]
[362137904,1748026232256,-151.17,0.0001999,2]
[362137905,1748026232266,-151.17,0.0001999,2]
[362137906,1748026232285,-151.17,0.0001999,2]
[362137907,1748026232295,-151.17,0.0001999,2]
[362137908,1748026232305,-151.17,0.0001999,2]
[362137909,1748026232315,-151.17,0.0001999,2]
[362137910,1748026232324,-151.17,0.0001999,2]
[362137911,1748026232334,-151.17,0.0001999,2]
[362137912,1748026232353,-151.17,0.0001999,2]
[362137913,1748026232362,-151.17,0.0001999,2]
[362137914,1748026232372,-151.17,0.0001999,2]
[362137915,1748026232382,-151.17,0.0001999,2]
[362137916,1748026232391,-151.0,0.00019998,2]
[362137917,1748026232400,-151.0,0.00019999,2]
[362137918,1748026232410,-151.0,0.00019999,2]
[362137919,1748026232419,-504.0,0.0002,2]
[362137920,1748026232428,-118526.57044103,0.0002,2]
[362137946,1748026237939,-300.0,0.00019177,2]
[362137947,1748026237949,-256.12142121,0.0002,2]
[362137948,1748026238159,-267.87857879,0.0002,2]
[362137949,1748026238169,-24.30757904,0.0002,2]
[362137953,1748026240233,-238.64988873,0.000199,2]
[362137954,1748026240244,-181.05007146,0.00019999,2]
[362137955,1748026240254,-643.6817389,0.00019999,2]
[362137956,1748026240263,-288.11587918,0.00019999,2]
[362137957,1748026240274,-2861329.57179104,0.0002,2]
[362137958,1748026240283,-17022.14,0.0002,2]
[362137959,1748026240293,-627658.83143185,0.0002,2]
[362137960,1748026240303,-1274471.54007707,0.0002,2]
[362137961,1748026240313,-1501.50271856,0.0002,2]
[362137962,1748026240323,-151.0,0.0002,2]
[362137963,1748026240332,-151.0,0.0002,2]
[362137964,1748026240342,-2423.22,0.0002,2]
[362137965,1748026240354,-151.0,0.0002,2]
[362137966,1748026240365,-151.0,0.0002,2]
[362137967,1748026240375,-151.0,0.0002,2]
[362137968,1748026240384,-151.0,0.0002,2]
[362137969,1748026240394,-151.0,0.0002,2]
[362137970,1748026240404,-151.0,0.0002,2]
[362137971,1748026240414,-191.620482,0.0002,2]
[362137972,1748026240423,-151.0,0.0002,2]
[362137973,1748026240434,-151.0,0.0002,2]
[362137974,1748026240443,-500.0,0.0002,2]
[362137975,1748026240453,-151.0,0.0002,2]
[362137976,1748026240463,-151.0,0.0002,2]
[362137977,1748026240472,-151.0,0.0002,2]
[362137978,1748026240482,-371.08158551,0.0002,2]
[362137979,1748026240492,-151.0,0.0002,2]
[362137980,1748026240502,-151.0,0.0002,2]
[362137981,1748026240512,-151.0,0.0002,2]
[362137982,1748026240522,-905.04712,0.0002,2]
[362137983,1748026240532,-4000.0,0.0002,4]
[362137984,1748026240541,-301.19827,0.0002,2]
[362137985,1748026240551,-151.0,0.0002,2]
[362137986,1748026240561,-151.0,0.0002,2]
[362137987,1748026240571,-182.760483,0.0002,2]
[362137988,1748026240580,-151.0,0.0002,2]
[362137989,1748026240591,-1771.4338099,0.00020013,2]
[362137990,1748026240600,-151.0,0.00020027,2]
[362137991,1748026240611,-151.0,0.00020027,2]
[362137992,1748026240620,-151.0,0.00020027,2]
[362137993,1748026240630,-151.0,0.00020027,2]
[362137994,1748026240640,-166.68,0.0002009,2]
[362137995,1748026240651,-161.35,0.00020187,2]
[362137996,1748026240660,-308.21144317,0.00020521,2]
[362137997,1748026240669,-1000.0,0.00020521,2]
[362137998,1748026240679,-1000.0,0.00020521,2]
[362137999,1748026240689,-250.0,0.00020638,2]
[362138000,1748026240699,-200.0,0.00020638,2]
[362138001,1748026240709,-151.0,0.0002075,2]
[362138002,1748026240719,-151.0,0.0002075,2]
[362138003,1748026240730,-151.0,0.0002075,2]
[362138004,1748026240739,-151.0,0.0002075,2]
[362138005,1748026240749,-151.0,0.0002075,2]
[362138006,1748026240759,-151.0,0.0002075,2]
[362138007,1748026240768,-151.0,0.0002075,2]
[362138008,1748026240778,-1564.039116,0.0002075,2]
[362138009,1748026240787,-292.892991,0.0002075,2]
[362138010,1748026240797,-78296.57666331,0.0002075,2]
[362138011,1748026240807,-1445.0,0.00020791,2]
[362138012,1748026240817,-8008.17,0.00020822,2]
[362138013,1748026240827,-250.0,0.00020826,2]
[362138014,1748026240837,-200.0,0.00020826,2]
[362138015,1748026240846,-420.0,0.000209,2]
[362138016,1748026240856,-250.0,0.00020918,2]
[362138017,1748026240866,-200.0,0.00020918,2]
[362138018,1748026240876,-905.04712,0.0002095,2]
[362138019,1748026240886,-211.73,0.00020986,2]
[362138020,1748026240896,-400.0,0.00021,2]
[362138021,1748026240905,-2250.0,0.00021,5]
[362138022,1748026240915,-1074.84462104,0.00021068,2]
[362138023,1748026240926,-1264.19343497,0.00021068,2]
[362138024,1748026240935,-189.52,0.00021282,2]
[362138025,1748026240945,-219.17,0.00021369,2]
[362138026,1748026240955,-282.4,0.0002137,2]
[362138027,1748026240965,-1000.0,0.00021393,2]
[362138028,1748026240975,-181.77,0.00021466,2]
[362138029,1748026240985,-384.63095211,0.00021567,2]
[362138030,1748026240995,-1680.0,0.00021667,2]
[362138031,1748026241009,-2456.0,0.00021859,2]
[362138032,1748026241018,-500.0,0.00021918,2]
[362138033,1748026241028,-286.41196076,0.00021918,2]
[362138034,1748026241039,-1449.32,0.00021977,2]
[362138035,1748026241049,-2423.22,0.000221,7]
[362138036,1748026241059,-591.34880402,0.000222,6]
[362138037,1748026241069,-591.34880373,0.000222,6]
[362138038,1748026241080,-591.34880373,0.000222,6]
[362138039,1748026241090,-591.34880373,0.000222,6]
[362138040,1748026241100,-905.04712,0.000222,2]
[362138041,1748026241110,-407.05218815,0.000224,2]
[362138042,1748026241119,-4000.0,0.000225,4]
[362138043,1748026241129,-151.17,0.00022552,2]
[362138044,1748026241139,-164.56,0.00022561,2]
[362138045,1748026241148,-300.0,0.00022561,2]
[362138046,1748026241159,-151.0,0.00022562,7]
[362138047,1748026241169,-151.0,0.00022562,7]
[362138048,1748026241179,-151.0,0.00022562,7]
[362138049,1748026241189,-151.0,0.00022562,7]
[362138050,1748026241199,-151.0,0.00022562,7]
[362138051,1748026241209,-151.0,0.00022562,7]
[362138052,1748026241219,-151.0,0.00022562,7]
[362138053,1748026241229,-151.0,0.00022562,7]
[362138054,1748026241239,-151.0,0.00022562,7]
[362138055,1748026241249,-151.0,0.00022562,7]
[362138056,1748026241259,-151.0,0.00022562,7]
[362138057,1748026241269,-151.0,0.00022562,7]
[362138058,1748026241279,-151.0,0.00022562,7]
[362138059,1748026241289,-238.630246,0.00022562,7]
[362138060,1748026241299,-1564.039116,0.00022562,7]
[362138061,1748026241309,-1564.039116,0.00022562,7]
[362138062,1748026241319,-1564.039116,0.00022562,7]
[362138063,1748026241330,-2270.42,0.00022562,2]
[362138064,1748026241340,-150.99,0.00022562,2]
[362138065,1748026241350,-184.44,0.00022562,7]
[362138066,1748026241361,-1496.46,0.00022562,2]
[362138067,1748026241372,-499.99,0.00022562,2]
[362138068,1748026241382,-9999.99,0.00022562,2]
[362138069,1748026241393,-696.85,0.00022562,2]
[362138070,1748026241403,-7607.86,0.00022562,2]
[362138071,1748026241413,-40483.0,0.00022562,2]
[362138072,1748026241423,-406.59,0.00022562,2]
[362138073,1748026241432,-3546.55,0.00022562,2]
[362138074,1748026241442,-999.99,0.00022562,2]
[362138075,1748026241452,-959.29,0.00022562,2]
[362138076,1748026241463,-150.99,0.00022562,2]
[362138077,1748026241473,-6622.38504428,0.00022562,2]
[362138078,1748026241491,-2152.88458122,0.00022562,2]
[362138079,1748026242047,-49.7626253,0.00022562,2]
[362138091,1748026243959,-303.0345973,0.00019999,2]
[362138092,1748026243968,-192.94153131,0.00022562,2]
[362138093,1748026244123,150.0,0.00017,2]
[362138094,1748026244175,-244.219854,0.00019599,2]
[362138095,1748026244185,-251.0,0.00019655,2]
[362138096,1748026244195,-181.4706067,0.00022561,2]
[362138097,1748026244204,-202.40813756,0.00022562,2]
[362138098,1748026244214,-20982.01621789,0.00022562,2]
[362138099,1748026244223,-29999.99,0.00022562,2]
[362138100,1748026244232,-17578.62,0.00022562,2]
[362138101,1748026244242,-6073.27,0.00022562,2]
[362138102,1748026244251,-500.0,0.00022573,2]
[362138103,1748026244260,-501.98463348,0.00022573,2]
[362138104,1748026244269,-1448.96974786,0.0002265,2]
[362138105,1748026244279,-591.34880373,0.00022659,7]
[362138106,1748026244288,-219.17,0.00022739,2]
[362138107,1748026244298,-587.0,0.00022776,2]
[362138108,1748026244307,-525.0,0.00022967,2]
[362138109,1748026244316,-450.0,0.00023,2]
[362138110,1748026244326,-290.86203752,0.00023,7]
[362138111,1748026244335,-207.0,0.00023017,6]
[362138112,1748026244344,-1006.17014145,0.00023121,2]
[362138113,1748026244354,-384.63095211,0.00023233,2]
[362138114,1748026244365,-591.34880373,0.00023348,9]
[362138115,1748026244375,-151.0,0.00023368,7]
[362138116,1748026244384,-151.0,0.00023368,7]
[362138117,1748026244393,-151.0,0.00023368,7]
[362138118,1748026244402,-151.0,0.00023368,7]
[362138119,1748026244412,-905.04713,0.0002345,2]
[362138120,1748026244421,-151.0,0.00023598,7]
[362138121,1748026244430,-189.52,0.00023647,2]
[362138122,1748026244440,-2351.0,0.00023711,2]
[362138123,1748026244449,-1000.0,0.0002377,2]
[362138124,1748026244458,-161.62,0.00023836,2]
[362138125,1748026244468,-2423.22,0.000239,7]
[362138126,1748026244477,-300.0,0.000239,8]
[362138127,1748026244487,-17022.14,0.00024,7]
[362138128,1748026244497,-151.0,0.00024,7]
[362138129,1748026244506,-151.0,0.00024,7]
[362138130,1748026244516,-151.0,0.00024,7]
[362138131,1748026244525,-151.0,0.00024,7]
[362138132,1748026244535,-1564.039116,0.00024,7]
[362138133,1748026244544,-591.34880373,0.00024038,10]
[362138134,1748026244554,-219.17,0.00024109,2]
[362138135,1748026244563,-1449.32,0.00024241,2]
[362138136,1748026244574,-1310.0,0.00024329,2]
[362138137,1748026244584,-936.0,0.00024329,2]
[362138138,1748026244593,-631.0,0.00024329,2]
[362138139,1748026244603,-799.0,0.00024329,2]
[362138140,1748026244616,-586.0,0.00024329,2]
[362138141,1748026244626,-1260.0,0.00024329,2]
[362138142,1748026244635,-921.0,0.00024329,2]
[362138143,1748026244645,-554.0,0.00024329,2]
[362138144,1748026244655,-1461.0,0.00024329,2]
[362138145,1748026244664,-842.0,0.00024329,2]
[362138146,1748026244674,-6838.0,0.00024329,2]
[362138147,1748026244683,-154.0,0.00024329,2]
[362138148,1748026244692,-881.0,0.0002433,2]
[362138149,1748026244702,-4052.0,0.0002433,2]
[362138150,1748026244712,-150.0,0.0002433,2]
[362138151,1748026244722,-150.0,0.0002433,2]
[362138152,1748026244731,-458.45,0.00024384,2]
[362138153,1748026244741,-458.45,0.00024384,2]
[362138154,1748026244750,-805.83,0.00024384,2]
[362138155,1748026244759,-783.06,0.00024384,2]
[362138156,1748026244769,-805.83,0.00024384,2]
[362138157,1748026244778,-805.83,0.00024384,2]
[362138158,1748026244788,-207.4,0.00024474,2]
[362138159,1748026244797,-905.04712,0.000247,2]
[362138160,1748026244806,-150.0,0.00024706,2]
[362138161,1748026244816,-150.0,0.00024716,2]
[362138162,1748026244825,-150.0,0.00024721,2]
[362138163,1748026244835,-150.0,0.00024721,2]
[362138164,1748026244844,-150.0,0.00024725,2]
[362138165,1748026244854,-591.34880373,0.00024728,11]
[362138166,1748026244864,-150.0,0.00024733,2]
[362138167,1748026244874,-150.0,0.00024737,2]
[362138168,1748026244884,-150.0,0.00024751,2]
[362138169,1748026244894,-1000.0,0.00024758,2]
[362138170,1748026244903,-150.0,0.00024763,2]
[362138171,1748026244912,-150.0,0.00024775,2]
[362138172,1748026244922,-443.05770236,0.00024783,2]
[362138173,1748026244931,-150.0,0.00024787,2]
[362138174,1748026244941,-150.0,0.00024789,2]
[362138175,1748026244950,-150.0,0.00024798,2]
[362138176,1748026244959,-150.0,0.00024799,2]
[362138177,1748026244969,-150.0,0.00024799,2]
[362138178,1748026244978,-151.0,0.000248,7]
[362138179,1748026244987,-151.0,0.000248,7]
[362138180,1748026244999,-172.214382,0.000248,7]
[362138181,1748026245010,-1564.039112,0.000248,7]
[362138182,1748026245020,-51799.42883779,0.000248,3]
[362138183,1748026246226,-238.64988873,0.00021387,2]
[362138184,1748026246236,-3818.32862972,0.000248,3]
[362138185,1748026246282,-6530.6136,0.000248,3]
[362138187,1748026311298,-938.42347,0.0002,2]
[362138188,1748026311323,-938.42347,0.0002,2]
[362138189,1748026311349,-938.42347,0.0002,2]
[362138190,1748026311373,-938.42347,0.0002,2]
[362138191,1748026311400,-938.42347,0.0002,2]
[362138192,1748026311713,-938.42347,0.0002,2]
[362138194,1748026331537,206.0,0.00019655,2]
[362138195,1748026339888,250.0,0.00015,2]
[362138196,1748026340943,300.0,0.00017,2]
[362138197,1748026342011,350.0,0.00019,2]
[362138198,1748026446048,268.99,0.00019999,2]
[362138199,1748026544430,166.2,0.00018915,2]
[362138202,1748026726243,169.79,0.00023328,30]
[362138209,1748027014766,179.35,0.00016712,2]
[362138214,1748027147133,-250.0,0.00020931,2]
[362138215,1748027147155,-0.46498645,0.00020931,2]
[362138216,1748027156079,-172.53770682,0.00020931,2]
[362138217,1748027202119,-200.0,0.00020948,2]
[362138218,1748027202145,-19.85451001,0.00021,2]
[362138219,1748027233322,-380.14548999,0.00021,2]
[362138220,1748027233347,-178.01287505,0.00021012,2]
[362138221,1748027233368,-911.7199,0.00021089,2]
[362138222,1748027233388,-359.92054056,0.00021112,2]
[362138223,1748027243105,-168.10945944,0.00021112,2]
[362138224,1748027243129,-268.99,0.00021369,2]
[362138225,1748027243151,-75.03731369,0.00021455,2]
[362138226,1748027286847,216.1,0.00018172,2]
[362138227,1748027428396,168.58,0.00013699,2]
[362138232,1748027432127,-168.58,0.00020187,2]
[362138233,1748027432137,-132.36268631,0.00021455,2]
[362138234,1748027432147,-200.0,0.00021461,2]
[362138235,1748027432156,-1483.72,0.00021468,2]
[362138236,1748027432165,-182.89015813,0.00021509,2]
[362138237,1748027432174,-1449.72235228,0.00021609,2]
[362138238,1748027432183,-200.0,0.00021711,2]
[362138239,1748027432192,-300.0,0.00021956,2]
[362138240,1748027432201,-166.2,0.00022067,2]
[362138241,1748027432211,-182.89015812,0.00022355,2]
[362138242,1748027432219,-3591.1427925,0.00022448,2]
[362138243,1748027432235,-945.5074345,0.00022448,2]
[362138244,1748027432244,-300.0,0.00022448,2]
[362138245,1748027432253,-1200.0,0.00022448,2]
[362138246,1748027432263,-300.0,0.00022561,2]
[362138247,1748027432272,-150.99,0.00022562,2]
[362138248,1748027432283,-999.99,0.00022562,2]
[362138249,1748027432292,-1132.79,0.00022562,2]
[362138250,1748027432301,-3452.83,0.00022562,2]
[362138251,1748027432311,-150.99,0.00022562,2]
[362138252,1748027432321,-1109.86,0.00022562,2]
[362138253,1748027432331,-250.0,0.00022667,2]
[362138254,1748027432340,-159.61906468,0.000227,2]
[362138255,1748027432349,-1780.19,0.00022737,2]
[362138256,1748027432359,-215.0738,0.00022824,2]
[362138257,1748027432368,-252.51,0.00022884,2]
[362138258,1748027432377,-506.46904485,0.000229,8]
[362138259,1748027432387,-150.0,0.00022906,7]
[362138260,1748027432398,-1243.96,0.00022944,2]
[362138261,1748027432407,-500.0,0.00022963,2]
[362138262,1748027432416,-450.0,0.00023,2]
[362138263,1748027432425,-200.0,0.00023,2]
[362138264,1748027432435,-200.0,0.00023024,2]
[362138265,1748027432444,-150.0,0.00023082,2]
[362138266,1748027432454,-150.0,0.00023088,2]
[362138268,1748027432464,-342.0,0.0002312,2]
[362138270,1748027432474,-6799.94,0.00023172,2]
[362138272,1748027432484,-182.89015812,0.00023201,2]
[362138274,1748027432493,-734.99283696,0.00023267,2]
[362138276,1748027432502,-1000.0,0.00023275,2]
[362138278,1748027432511,-19357.84081578,0.00023276,2]
[362138281,1748027432522,-1396.87918422,0.00023276,2]
[362138284,1748027432533,-200.0,0.00023288,2]
[362138286,1748027432542,-175.32,0.000233,2]
[362138288,1748027432551,-1151.34,0.000233,2]
[362138290,1748027432562,-185.41,0.000233,2]
[362138292,1748027432571,-4102.05081578,0.000233,2]
[362138295,1748027432585,-9539.32214318,0.000233,2]
[362138297,1748027432596,-2200.469976,0.000233,2]
[362138299,1748027432608,-1868.03384965,0.000233,2]
[362138301,1748027432619,-562.76417773,0.000233,2]
[362138305,1748027432642,-3425.0999998,0.000233,2]
[362138308,1748027432655,-2202.25903786,0.000233,2]
[362138310,1748027432665,-4123.04096214,0.000233,2]
[362138313,1748027432676,-4498.45279132,0.000233,2]
[362138315,1748027432687,-2240.13332564,0.000233,2]
[362138317,1748027432699,-2014.0029209,0.000233,2]
[362138319,1748027432708,-1302.3,0.000233,2]
[362138321,1748027432717,-1302.3,0.00023307,2]
[362138323,1748027432726,-1000.0,0.00023309,2]
[362138325,1748027432736,-814.61258373,0.00023313,2]
[362138327,1748027432748,-458.0009778,0.00023313,2]
[362138329,1748027432759,-29.68643847,0.00023313,2]
[362138331,1748027432769,-1101.79591271,0.00023319,2]
[362138333,1748027432785,-200.50408729,0.00023319,2]
[362138334,1748027432795,-734.99283696,0.00023323,2]
[362138335,1748027432805,-1302.3,0.00023325,2]
[362138336,1748027432815,-2589.45,0.00023326,2]
[362138337,1748027432825,-1302.3,0.00023331,2]
[362138338,1748027432834,-1302.3,0.00023337,2]
[362138339,1748027432844,-3275.82,0.0002334,2]
[362138340,1748027432854,-1302.3,0.00023343,2]
[362138341,1748027433112,-516.15353402,0.0002335,2]
[362138342,1748027433315,-786.14646598,0.0002335,2]
[362138343,1748027433326,-1302.3,0.00023356,2]
[362138344,1748027433335,-1302.3,0.00023362,2]
[362138345,1748027433345,-1302.3,0.00023368,2]
[362138346,1748027433355,-267.35353402,0.00023373,2]
[362138362,1748027438487,-232.64646598,0.00023373,2]